bitfinex/quotes_SOLUSD_20251207
["timestamp","ask_amount","ask_price","bid_price","bid_amount"]
[1765129380483,0.79,134.75,134.74,16.308864]
[1765129381006,0.1,134.75,134.74,24.688864]
[1765129381590,0.1,134.75,134.74,16.308864]
[1765129381790,0.79,134.75,134.74,16.308864]
[1765129381998,7.04010048,134.75,134.74,16.308864]
[1765129382499,14.46125075,134.75,134.72,16.308864]
[1765129382694,14.46125075,134.75,134.72,24.688864]
[1765129382695,6.94010048,134.74,134.72,24.688864]
[1765129383073,0.69,134.73,134.72,24.688864]
[1765129383496,6.94010048,134.73,134.72,24.688864]
[1765129383698,14.46125075,134.75,134.72,24.688864]
[1765129384001,0.1,134.75,134.72,24.688864]
[1765129384205,0.1,134.75,134.72,56.91845498]
[1765129384705,0.79,134.75,134.72,50.6683545]
[1765129384892,0.1,134.75,134.72,56.91845498]
[1765129385210,0.1,134.75,134.72,50.6683545]
[1765129386478,0.69,134.74,134.72,8.38]
[1765129386695,6.94010048,134.74,134.72,8.38]
[1765129386895,0.69,134.74,134.72,8.38]
[1765129387104,0.69,134.73,134.71,8.38]
[1765129387275,6.25010048,134.72,134.67,7.42518062]
[1765129387482,6.25010048,134.71,134.68,8.38]
[1765129387886,6.25010048,134.69,134.68,8.38]
[1765129388197,6.94010048,134.7,134.68,8.38]
[1765129388396,6.94010048,134.69,134.64,17.64938723]
[1765129388612,6.94010048,134.69,134.65,15.80665005]
[1765129388806,0.69,134.68,134.67,16.308864]
[1765129390104,0.69,134.68,134.66,7.42607376]
[1765129390497,0.69,134.68,134.64,11.39928675]
[1765129390702,0.69,134.68,134.66,8.38]
[1765129391029,6.94010048,134.68,134.66,24.688864]
[1765129391210,6.25010048,134.67,134.66,8.38]
[1765129391504,6.25010048,134.69,134.68,16.308864]
[1765129391685,6.94010048,134.69,134.68,16.308864]
[1765129392105,0.69,134.69,134.68,16.308864]
[1765129392509,6.94010048,134.69,134.67,7.42539813]
[1765129393010,7.42341873,134.71,134.69,16.308864]
[1765129393011,6.25010048,134.71,134.69,16.308864]
[1765129393312,7.42238866,134.73,134.69,16.308864]
[1765129393485,6.25010048,134.71,134.69,16.308864]
[1765129393805,6.25010048,134.7,134.69,16.308864]
[1765129394195,6.94010048,134.7,134.69,16.308864]
[1765129394503,6.94010048,134.7,134.66,16.308864]
[1765129394710,6.94010048,134.69,134.67,24.688864]
[1765129395105,0.69,134.68,134.67,24.688864]
[1765129395620,0.69,134.68,134.67,32.11442277]
[1765129396111,6.94010048,134.71,134.68,16.308864]
[1765129396425,6.94010048,134.73,134.72,16.308864]
[1765129397102,0.69,134.73,134.72,16.308864]
[1765129397304,6.94010048,134.73,134.72,16.308864]
[1765129397514,0.69,134.73,134.72,16.308864]
[1765129398535,14.36235239,134.73,134.72,16.308864]
[1765129399992,8.80994492,134.72,134.65,36.21573025]
[1765129400200,6.25010048,134.7,134.66,8.38]
[1765129400616,0.69,134.7,134.69,16.308864]
[1765129401131,27.03337043,134.75,134.68,24.688864]
[1765129401309,6.25010048,134.73,134.71,16.308864]
[1765129401721,0.69,134.72,134.71,16.308864]
[1765129402597,6.94010048,134.72,134.71,16.308864]
[1765129402800,0.69,134.72,134.71,16.308864]
[1765129403299,14.36290333,134.72,134.71,16.308864]
[1765129403726,6.94010048,134.72,134.71,16.308864]
[1765129404324,14.36290333,134.72,134.71,16.308864]
[1765129405899,8.11280285,134.72,134.71,16.308864]
[1765129406114,14.36290333,134.72,134.71,16.308864]
[1765129407818,8.11280285,134.72,134.71,16.308864]
[1765129408003,14.36290333,134.72,134.71,16.308864]
[1765129408208,6.94010048,134.72,134.71,16.308864]
[1765129409618,14.36290333,134.72,134.71,16.308864]
[1765129409819,14.36290333,134.72,134.68,15.80482569]
[1765129409820,6.94010048,134.72,134.69,7.42439739]
[1765129410017,7.42243078,134.73,134.7,16.308864]
[1765129410018,6.94010048,134.71,134.7,16.308864]
[1765129411629,6.25010048,134.71,134.69,15.458864]
[1765129411932,15.6600454,134.7,134.64,8.38]
[1765129412113,6.25010048,134.7,134.64,8.38]
[1765129412426,7.42335387,134.71,134.65,14.39633598]
[1765129412427,6.25010048,134.71,134.65,14.39633598]
[1765129412739,6.25010048,134.72,134.65,32.96299026]
[1765129412910,6.25010048,134.72,134.66,0.72]
[1765129413111,6.25010048,134.72,134.67,8.38]
[1765129413412,6.25010048,134.73,134.67,14.63010048]
[1765129413721,6.25010048,134.73,134.7,23.7325496]
[1765129413914,6.25010048,134.73,134.7,32.1125496]
[1765129414128,6.25010048,134.74,134.71,0.72]
[1765129414308,6.25010048,134.73,134.7,25.408864]
[1765129414509,6.25010048,134.72,134.71,16.308864]
[1765129414712,6.85010048,134.72,134.68,9.08]
[1765129414915,6.25010048,134.7,134.69,16.308864]
[1765129415334,6.85010048,134.7,134.66,8.36]
[1765129415635,6.25010048,134.69,134.66,9.08]
[1765129415810,13.67459148,134.69,134.66,9.08]
[1765129416011,16.23329879,134.71,134.66,8.36]
[1765129416234,6.25010048,134.69,134.66,24.668864]
[1765129416417,6.25010048,134.69,134.66,25.388864]
[1765129416731,6.25010048,134.69,134.66,9.08]
[1765129417032,6.25010048,134.69,134.66,24.668864]
[1765129417327,6.25010048,134.69,134.66,25.388864]
[1765129418537,13.67455916,134.69,134.66,25.388864]
[1765129418831,6.25010048,134.69,134.67,0.72]
[1765129419209,7.4235463,134.71,134.67,0.72]
[1765129419414,13.67364678,134.71,134.68,16.308864]
[1765129419921,13.67364678,134.71,134.7,16.308864]
[1765129420931,10.35920268,134.71,134.67,23.73424349]
[1765129421132,2.33565638,134.7,134.67,23.73424349]
[1765129421510,2.33565638,134.7,134.67,24.45424349]
[1765129422130,2.33565638,134.69,134.67,24.45424349]
[1765129422331,2.33565638,134.7,134.67,24.45424349]
[1765129422533,2.33565638,134.7,134.67,23.73424349]
[1765129422741,3.64981399,134.7,134.67,24.45441472]
[1765129423915,11.073801,134.7,134.67,17.028864]
[1765129424229,3.64981399,134.69,134.67,16.308864]
[1765129425738,3.64981399,134.69,134.67,17.028864]
[1765129425939,3.64981399,134.69,134.67,16.308864]
[1765129427232,3.64981399,134.69,134.67,17.028864]
[1765129428227,3.64981399,134.69,134.67,16.308864]
[1765129428738,3.64981399,134.69,134.67,17.028864]
[1765129431642,3.64981399,134.69,134.67,16.308864]
[1765129431944,3.64981399,134.68,134.67,16.308864]
[1765129434350,11.07482141,134.68,134.67,16.308864]
[1765129434931,3.64981399,134.68,134.67,16.308864]
[1765129435834,3.64981399,134.69,134.67,16.978864]
[1765129436151,3.64981399,134.68,134.67,16.978864]
[1765129436743,3.64981399,134.68,134.67,16.308864]
[1765129438250,3.64981399,134.69,134.67,16.978864]
[1765129438569,3.64981399,134.69,134.67,16.308864]
[1765129438963,3.64981399,134.69,134.67,16.978864]
[1765129441129,3.64981399,134.68,134.67,16.308864]
[1765129442253,3.64981399,134.71,134.67,16.978864]
[1765129442454,11.07261684,134.72,134.68,0.67]
[1765129442639,3.64981399,134.73,134.68,9.03]
[1765129443142,3.64981399,134.73,134.71,16.308864]
[1765129443347,3.64981399,134.73,134.71,24.668864]
[1765129443526,3.64981399,134.73,134.71,25.338864]
[1765129443728,3.64981399,134.72,134.71,25.338864]
[1765129444057,8.90994492,134.75,134.72,0.67]
[1765129444227,3.74981399,134.75,134.72,0.67]
[1765129444630,3.64981399,134.74,134.72,0.67]
[1765129444831,0.1,134.75,134.72,0.67]
[1765129445059,3.64981399,134.74,134.72,0.67]
[1765129445231,0.1,134.75,134.72,8.09271926]
[1765129445435,3.74981399,134.75,134.72,8.09271926]
[1765129445637,3.74981399,134.75,134.73,0.67]
[1765129445842,3.74981399,134.75,134.73,9.03]
[1765129446153,3.74981399,134.75,134.74,16.308864]
[1765129446154,0.1,134.75,134.74,16.308864]
[1765129446449,0.1,134.75,134.74,24.40056505]
[1765129447253,0.1,134.75,134.74,28.05037904]
[1765129447463,0.1,134.76,134.75,7.29962798]
[1765129447752,0.2,134.79,134.78,16.308864]
[1765129447943,0.2,134.79,134.78,24.668864]
[1765129448144,0.2,134.79,134.78,25.338864]
[1765129448730,0.2,134.79,134.78,32.75836244]
[1765129449346,0.2,134.79,134.78,42.4224145]
[1765129450738,0.2,134.79,134.78,32.75836244]
[1765129451092,0.2,134.79,134.78,25.338864]
[1765129451243,0.2,134.79,134.78,32.75836244]
[1765129452257,0.2,134.79,134.78,24.39836244]
[1765129452898,0.2,134.79,134.78,42.4224145]
[1765129453042,0.2,134.79,134.76,10.77117406]
[1765129453368,9.86405206,134.79,134.76,0.67]
[1765129453570,0.2,134.79,134.78,16.308864]
[1765129453863,0.2,134.79,134.77,0.67]
[1765129453864,0.2,134.79,134.77,9.03]
[1765129454061,0.2,134.79,134.78,17.0835505]
[1765129454257,0.2,134.79,134.78,17.7535505]
[1765129454657,0.2,134.79,134.78,28.52472456]
[1765129457057,0.2,134.79,134.78,36.88472456]
[1765129458761,0.2,134.83,134.81,16.308864]
[1765129458958,0.2,134.83,134.82,34.31291606]
[1765129459157,0.2,134.83,134.82,34.98291606]
[1765129459360,0.2,134.83,134.82,45.75409012]
[1765129460074,0.2,134.83,134.82,8.34]
[1765129460545,0.2,134.83,134.82,24.648864]
[1765129461348,0.2,134.83,134.82,8.34]
[1765129461349,17.97079907,134.83,134.82,8.34]
[1765129461671,17.97079907,134.83,134.79,8.34]
[1765129461885,9.66405206,134.81,134.79,8.34]
[1765129462183,17.08192726,134.81,134.79,8.34]
[1765129462342,17.77150269,134.82,134.79,24.648864]
[1765129462540,9.66405206,134.81,134.76,7.42021154]
[1765129462748,9.66405206,134.8,134.77,8.34]
[1765129462944,10.35405206,134.8,134.77,8.34]
[1765129463370,10.35405206,134.8,134.77,24.648864]
[1765129463551,0.69,134.79,134.77,24.648864]
[1765129463750,9.66405206,134.8,134.77,24.648864]
[1765129463965,9.66405206,134.79,134.77,24.648864]
[1765129464163,10.35405206,134.79,134.77,24.648864]
[1765129464474,9.66405206,134.79,134.77,24.648864]
[1765129464645,17.08263433,134.8,134.77,24.648864]
[1765129464984,17.77263433,134.8,134.77,24.648864]
[1765129466565,17.08263433,134.8,134.77,24.648864]
[1765129466890,0.69,134.79,134.77,24.648864]
[1765129467166,10.35405206,134.79,134.77,24.648864]
[1765129468668,11.06308274,134.8,134.77,24.648864]
[1765129469170,11.06250067,134.81,134.77,32.75888443]
[1765129469469,11.75250067,134.81,134.77,32.06888443]
[1765129469671,0.69,134.8,134.77,32.06888443]
[1765129470379,3.64450047,134.81,134.77,32.75888443]
[1765129470582,4.33450047,134.81,134.77,32.75888443]
[1765129471076,4.33450047,134.82,134.78,0.69]
[1765129471254,4.33450047,134.82,134.79,8.34]
[1765129471449,4.33450047,134.81,134.79,8.34]
[1765129471850,3.64450047,134.8,134.79,8.34]
[1765129473165,4.33450047,134.81,134.79,8.34]
[1765129474156,11.75239855,134.81,134.79,8.34]
[1765129474778,8.10789808,134.81,134.79,8.34]
[1765129474980,11.75239855,134.81,134.79,8.34]
[1765129476786,3.64450047,134.8,134.79,8.34]
[1765129477079,11.75239855,134.81,134.79,8.34]
[1765129477976,3.64450047,134.8,134.79,8.34]
[1765129478176,11.06239855,134.81,134.79,8.34]
[1765129478557,11.06239855,134.81,134.78,9.03]
[1765129478758,11.06239855,134.81,134.77,16.308864]
[1765129478969,3.64450047,134.78,134.72,11.46117406]
[1765129479180,3.64450047,134.75,134.73,8.34]
[1765129479360,3.64450047,134.77,134.73,9.03]
[1765129479555,3.64450047,134.77,134.74,16.998864]
[1765129479967,3.64450047,134.77,134.75,0.69]
[1765129480263,3.64450047,134.77,134.73,15.7620874]
[1765129480264,11.06468286,134.77,134.73,15.7620874]
[1765129480473,11.75468286,134.77,134.73,9.03]
[1765129480769,3.64450047,134.76,134.73,9.03]
[1765129481166,3.64450047,134.76,134.73,25.338864]
[1765129481367,11.75468286,134.77,134.74,0.69]
[1765129481569,11.06468286,134.77,134.74,0.69]
[1765129482279,3.64450047,134.76,134.73,24.648864]
[1765129482486,3.64450047,134.76,134.73,25.338864]
[1765129482687,2.33372036,134.76,134.73,25.338864]
[1765129483584,2.33372036,134.76,134.74,0.69]
[1765129484066,9.75437079,134.76,134.73,25.338864]
[1765129484861,2.33372036,134.75,134.73,24.648864]
[1765129485193,3.02372036,134.75,134.73,16.308864]
[1765129485483,2.33372036,134.75,134.73,24.648864]
[1765129485681,9.7550169,134.75,134.73,25.338864]
[1765129487080,7.42071579,134.76,134.73,25.338864]
[1765129487289,10.44443615,134.76,134.73,25.338864]
[1765129488785,2.33372036,134.76,134.74,0.69]
[1765129488994,9.75377111,134.77,134.74,0.69]
[1765129489177,10.44377111,134.77,134.74,0.69]
[1765129489868,3.02372036,134.77,134.74,0.69]
[1765129490381,9.75335249,134.78,134.75,8.34]
[1765129490778,0.69,134.79,134.75,8.34]
[1765129490779,2.33372036,134.8,134.76,17.028864]
[1765129490984,3.02372036,134.8,134.77,8.34]
[1765129491168,2.33372036,134.8,134.77,9.06]
[1765129491873,7.41843234,134.8,134.78,0.72]
[1765129492073,7.41843234,134.8,134.77,9.06]
[1765129492484,9.7521527,134.8,134.77,9.06]
[1765129493677,10.4421527,134.8,134.77,9.06]
[1765129494493,2.33372036,134.78,134.77,8.34]
[1765129494994,3.02372036,134.79,134.77,8.34]
[1765129496490,2.33372036,134.78,134.77,16.308864]
[1765129497389,3.05372036,134.78,134.77,16.308864]
[1765129498094,2.33372036,134.78,134.77,16.308864]
[1765129498393,3.05372036,134.78,134.77,16.308864]
[1765129498695,10.4732188,134.78,134.77,16.308864]
[1765129500611,19.28316372,134.78,134.74,8.34]
[1765129500775,2.33372036,134.76,134.74,8.34]
[1765129501105,2.33372036,134.79,134.75,0.68]
[1765129501271,3.05372036,134.79,134.75,0.68]
[1765129501471,3.05372036,134.79,134.77,16.308864]
[1765129502404,2.33372036,134.8,134.78,0.68]
[1765129502701,0.2,134.83,134.79,2.33372036]
[1765129502888,0.2,134.83,134.8,8.34]
[1765129503198,0.2,134.83,134.8,9.02]
[1765129503375,0.2,134.83,134.81,0.68]
[1765129504105,3.25372036,134.83,134.8,16.308864]
[1765129504272,9.75180639,134.81,134.77,7.41997822]
[1765129504476,2.33372036,134.8,134.78,24.648864]
[1765129504677,2.33372036,134.8,134.78,25.328864]
[1765129504894,3.05372036,134.8,134.78,24.648864]
[1765129505101,2.33372036,134.8,134.78,24.648864]
[1765129506203,2.33372036,134.81,134.79,0.68]
[1765129506402,3.05372036,134.8,134.76,8.34]
[1765129506603,2.33372036,134.78,134.76,8.34]
[1765129506808,25.96072319,134.82,134.77,0.68]
[1765129507007,2.33372036,134.8,134.76,8.34]
[1765129507314,2.33372036,134.78,134.76,16.308864]
[1765129507502,8.80994492,134.8,134.76,16.308864]
[1765129507707,2.33372036,134.78,134.76,16.308864]
[1765129508517,9.75316653,134.79,134.76,16.988864]
[1765129508710,2.33372036,134.78,134.76,16.988864]
[1765129510013,2.33372036,134.78,134.76,16.308864]
[1765129510910,9.75333861,134.78,134.76,16.308864]
[1765129511161,8.80994492,134.76,134.7,8.80994492]
[1765129511416,2.33372036,134.73,134.71,8.34]
[1765129511600,2.33372036,134.72,134.71,8.34]
[1765129511783,2.33372036,134.72,134.69,7.42440835]
[1765129511985,2.33372036,134.71,134.67,11.45117406]
[1765129512186,0.72,134.72,134.68,9.02]
[1765129512187,2.33372036,134.72,134.68,9.02]
[1765129512407,2.33372036,134.74,134.71,16.308864]
[1765129512802,2.33372036,134.74,134.71,16.988864]
[1765129512997,2.33372036,134.74,134.71,25.328864]
[1765129513198,2.33372036,134.73,134.71,24.648864]
[1765129513815,2.33372036,134.72,134.71,8.34]
[1765129514196,3.05372036,134.72,134.69,24.648864]
[1765129514396,3.05372036,134.72,134.69,8.34]
[1765129514397,2.33372036,134.71,134.69,8.34]
[1765129514622,2.33372036,134.7,134.68,10.77117406]
[1765129514803,8.80994492,134.74,134.69,0.68]
[1765129515116,0.72,134.74,134.7,16.308864]
[1765129515300,2.33372036,134.73,134.7,16.308864]
[1765129515505,2.33372036,134.74,134.72,16.308864]
[1765129515900,3.05372036,134.74,134.72,16.308864]
[1765129516302,8.80994492,134.76,134.72,24.648864]
[1765129516503,2.33372036,134.74,134.72,25.328864]
[1765129516695,2.33372036,134.74,134.72,24.648864]
[1765129517207,16.23103162,134.76,134.72,8.34]
[1765129517208,2.33372036,134.73,134.72,8.34]
[1765129517813,3.05372036,134.73,134.72,8.34]
[1765129517991,2.33372036,134.73,134.72,8.34]
[1765129518188,2.33372036,134.73,134.72,24.648864]
[1765129518511,2.33372036,134.74,134.72,24.648864]
[1765129518770,16.23011459,134.77,134.73,0.68]
[1765129519034,2.33372036,134.77,134.75,16.308864]
[1765129519218,2.33372036,134.79,134.75,24.648864]
[1765129519417,36.21854212,134.82,134.77,2.33372036]
[1765129519418,7.41746557,134.82,134.77,2.33372036]
[1765129519617,7.41746557,134.82,134.78,8.34]
[1765129519835,7.41746557,134.82,134.78,9.02]
[1765129520036,0.2,134.83,134.81,16.308864]
[1765129520236,0.2,134.83,134.82,10.65372036]
[1765129520438,0.2,134.83,134.82,18.75101749]
[1765129520621,0.2,134.83,134.82,16.41729713]
[1765129520826,0.1,134.86,134.85,22.54769309]
[1765129521023,0.1,134.86,134.85,31.57769309]
[1765129521539,0.1,134.86,134.85,25.338864]
[1765129522454,0.1,134.86,134.85,31.57769309]
[1765129522657,0.1,134.86,134.85,49.76451416]
[1765129523436,0.1,134.86,134.85,24.628864]
[1765129523637,0.1,134.86,134.85,25.338864]
[1765129524237,0.1,134.86,134.82,8.12721086]
[1765129524559,0.1,134.86,134.84,24.628864]
[1765129524754,0.1,134.86,134.84,8.32]
[1765129525052,6.93882909,134.85,134.8,11.48117406]
[1765129525236,6.23882909,134.84,134.8,0.71]
[1765129525439,6.93882909,134.84,134.83,16.308864]
[1765129525638,6.93882909,134.84,134.81,8.32]
[1765129525838,6.93882909,134.83,134.81,8.32]
[1765129526437,7.41742469,134.82,134.78,0.71]
[1765129526759,14.35567165,134.83,134.8,24.628864]
[1765129527258,14.35567165,134.83,134.78,8.32]
[1765129527259,6.23882909,134.81,134.78,8.32]
[1765129527555,6.23882909,134.8,134.78,8.32]
[1765129527861,6.93882909,134.81,134.78,8.32]
[1765129528358,6.23882909,134.8,134.75,7.42099954]
[1765129528666,6.23882909,134.79,134.76,8.32]
[1765129529053,6.23882909,134.79,134.76,25.338864]
[1765129529253,6.23882909,134.78,134.76,8.32]
[1765129529652,6.23882909,134.78,134.77,16.308864]
[1765129529852,0.7,134.77,134.72,11.48117406]
[1765129530058,6.23882909,134.75,134.71,16.45291688]
[1765129530455,6.23882909,134.75,134.72,16.308864]
[1765129530657,14.35998869,134.75,134.72,16.308864]
[1765129530840,0.7,134.75,134.72,16.308864]
[1765129531042,6.23882909,134.76,134.72,7.42244692]
[1765129531259,6.23882909,134.75,134.71,16.45323882]
[1765129531659,6.23882909,134.75,134.72,0.71]
[1765129532160,6.23882909,134.75,134.71,15.74323882]
[1765129532368,6.93882909,134.75,134.71,16.45323882]
[1765129532551,6.23882909,134.75,134.71,16.45323882]
[1765129532750,6.23882909,134.73,134.68,0.71]
[1765129532971,6.93882909,134.72,134.69,8.32]
[1765129533774,6.23882909,134.71,134.69,8.32]
[1765129534875,14.36218488,134.71,134.69,8.32]
[1765129535169,6.23882909,134.7,134.69,16.308864]
[1765129535672,6.23882909,134.71,134.69,16.308864]
[1765129536272,13.66229948,134.71,134.69,16.308864]
[1765129536446,14.36229948,134.71,134.69,16.308864]
[1765129537770,14.36229948,134.71,134.68,8.32]
[1765129537771,6.23882909,134.7,134.68,8.32]
[1765129538463,6.23882909,134.7,134.67,17.018864]
[1765129538680,6.93882909,134.69,134.68,8.32]
[1765129539149,6.23882909,134.69,134.68,8.32]
[1765129539346,6.23882909,134.69,134.66,25.338864]
[1765129539551,14.363522,134.69,134.66,24.628864]
[1765129539866,6.23882909,134.7,134.67,0.71]
[1765129540057,6.23882909,134.7,134.67,8.32]
[1765129540450,6.23882909,134.69,134.67,8.32]
[1765129541160,6.23882909,134.71,134.68,16.308864]
[1765129541366,6.23882909,134.71,134.68,17.018864]
[1765129541569,0.7,134.72,134.68,17.018864]
[1765129541771,18.55192749,134.76,134.68,16.308864]
[1765129542068,6.23882909,134.75,134.7,16.308864]
[1765129542270,6.23882909,134.75,134.71,8.32]
[1765129542456,13.65940077,134.77,134.74,16.308864]
[1765129542857,14.35842666,134.78,134.74,25.338864]
[1765129543386,6.23882909,134.75,134.72,16.308864]
[1765129543559,6.23882909,134.76,134.72,24.628864]
[1765129543758,6.23882909,134.76,134.72,25.338864]
[1765129543985,6.93882909,134.76,134.72,25.338864]
[1765129544182,6.93882909,134.75,134.72,24.628864]
[1765129544881,10.3757666,134.75,134.72,24.628864]
[1765129545106,17.09749376,134.74,134.72,24.628864]
[1765129545602,17.09749376,134.74,134.72,16.308864]
[1765129545811,17.09749376,134.74,134.69,9.6757666]
[1765129545812,17.09749376,134.74,134.69,7.42429346]
[1765129545979,9.6757666,134.73,134.72,16.308864]
[1765129546794,9.6757666,134.73,134.7,9.03]
[1765129547104,10.3757666,134.72,134.68,8.13482077]
[1765129547286,10.3757666,134.72,134.68,8.32]
[1765129547489,10.3757666,134.72,134.69,16.308864]
[1765129548204,9.6757666,134.71,134.7,16.308864]
[1765129549303,9.6757666,134.71,134.65,8.32]
[1765129549304,8.80994492,134.69,134.65,8.32]
[1765129549477,9.6757666,134.66,134.65,8.32]
[1765129549678,9.6757666,134.66,134.63,0.2]
[1765129549679,8.80994492,134.65,134.63,0.2]
[1765129549875,8.80994492,134.63,134.61,0.2]
[1765129550099,9.6757666,134.65,134.61,9.23]
[1765129550310,8.32,134.68,134.61,9.23]
[1765129550311,18.48571152,134.68,134.61,26.334383]
[1765129550490,9.6757666,134.68,134.65,16.308864]
[1765129550690,18.55717544,134.72,134.66,0.7]
[1765129550691,7.42346978,134.71,134.66,0.7]
[1765129550886,9.6757666,134.71,134.66,0.7]
[1765129551206,16.23288495,134.72,134.67,7.42555877]
[1765129551514,9.6757666,134.72,134.68,8.32]
[1765129551808,9.6757666,134.74,134.71,16.308864]
[1765129551976,9.6757666,134.75,134.71,24.628864]
[1765129552185,9.6757666,134.76,134.72,0.7]
[1765129552400,9.6757666,134.74,134.72,16.308864]
[1765129552905,9.6757666,134.75,134.72,17.008864]
[1765129553280,9.6757666,134.74,134.71,16.308864]
[1765129553481,9.6757666,134.72,134.71,16.308864]
[1765129553727,16.2305445,134.76,134.71,16.308864]
[1765129553894,9.6757666,134.74,134.72,0.7]
[1765129554315,9.6757666,134.75,134.72,17.008864]
[1765129554494,9.6757666,134.74,134.72,16.308864]
[1765129554704,9.6757666,134.73,134.72,16.308864]
[1765129554880,9.6757666,134.73,134.71,8.32]
[1765129555386,8.10133711,134.75,134.71,9.02]
[1765129555607,9.6757666,134.73,134.71,8.32]
[1765129557313,16.23065241,134.76,134.71,8.98]
[1765129557482,9.6757666,134.74,134.71,8.98]
[1765129558388,9.6757666,134.75,134.72,0.66]
[1765129558590,9.6757666,134.73,134.67,19.22374938]
[1765129558790,9.6757666,134.73,134.7,16.308864]
[1765129558997,9.6757666,134.74,134.71,8.32]
[1765129559215,9.6757666,134.74,134.71,8.98]
[1765129560111,9.6757666,134.74,134.71,16.4032938]
[1765129560294,9.6757666,134.73,134.71,8.32]
[1765129560690,9.6757666,134.74,134.72,0.66]
[1765129560892,7.42010326,134.77,134.74,16.308864]
[1765129561089,9.6757666,134.77,134.74,16.308864]
[1765129561302,9.6757666,134.77,134.75,0.66]
[1765129562009,9.6757666,134.77,134.74,24.628864]
[1765129562211,9.6757666,134.77,134.74,25.288864]
[1765129562724,9.6757666,134.76,134.74,24.628864]
[1765129563102,9.6757666,134.76,134.74,25.288864]
[1765129563304,10.3757666,134.75,134.72,8.32]
[1765129563502,9.6757666,134.75,134.72,8.32]
[1765129563807,9.6757666,134.74,134.72,8.32]
[1765129564425,10.3757666,134.73,134.69,8.32]
[1765129564621,9.6757666,134.71,134.69,8.32]
[1765129564921,9.6757666,134.72,134.71,16.308864]
[1765129565924,17.09856945,134.72,134.71,16.308864]
[1765129566105,9.6757666,134.72,134.71,16.308864]
[1765129566800,10.3757666,134.72,134.71,16.308864]
[1765129567003,0.7,134.72,134.71,16.308864]
[1765129567201,9.6757666,134.72,134.71,16.308864]
[1765129567802,10.3757666,134.72,134.71,16.308864]
[1765129568925,17.79856945,134.72,134.71,16.308864]
[1765129569521,26.60851437,134.72,134.69,8.32]
[1765129569707,26.60851437,134.72,134.66,8.08608854]
[1765129569708,9.6757666,134.7,134.67,8.32]
[1765129569909,9.6757666,134.69,134.67,24.628864]
[1765129570127,9.6757666,134.69,134.67,8.32]
[1765129570336,9.6757666,134.71,134.68,0.66]
[1765129570822,9.6757666,134.71,134.68,16.968864]
[1765129571627,9.6757666,134.7,134.68,16.308864]
[1765129571798,9.6757666,134.69,134.68,15.118864]
[1765129572007,9.6757666,134.69,134.63,7.42731931]
[1765129572008,18.48571152,134.69,134.63,7.42731931]
[1765129572200,9.6757666,134.67,134.64,8.08703176]
[1765129572536,9.6757666,134.69,134.65,8.98]
[1765129572723,9.6757666,134.67,134.65,8.32]
[1765129573039,9.6757666,134.66,134.65,0.66]
[1765129573332,9.6757666,134.66,134.63,8.32]
[1765129573536,9.6757666,134.64,134.63,8.32]
[1765129573832,9.6757666,134.64,134.61,9.18]
[1765129574034,8.80994492,134.67,134.62,0.66]
[1765129574329,9.6757666,134.65,134.62,16.968864]
[1765129575002,9.6757666,134.65,134.63,0.66]
[1765129575822,9.6757666,134.66,134.64,16.308864]
[1765129576228,9.6757666,134.66,134.64,16.968864]
[1765129576414,9.6757666,134.66,134.64,16.308864]
[1765129576729,9.6757666,134.66,134.64,16.968864]
[1765129577120,9.6757666,134.66,134.64,16.308864]
[1765129577308,9.6757666,134.66,134.64,16.968864]
[1765129577917,9.6757666,134.67,134.65,0.66]
[1765129579437,16.23452069,134.69,134.65,0.66]
[1765129579745,9.6757666,134.68,134.65,0.66]
[1765129580039,9.6757666,134.66,134.64,24.628864]
[1765129580209,8.80994492,134.68,134.65,0.66]
[1765129580523,9.6757666,134.66,134.64,25.288864]
[1765129580834,34.79566108,134.69,134.61,18.77124436]
[1765129580835,34.79566108,134.69,134.62,32.05717593]